[Event "DVM U20 2019"]
[Site "Braunschweig"]
[Date "2019.12.30"]
[Round "7"]
[White "Heise, Tobias"]
[Black "Genov, Valentin"]
[Result "1/2-1/2"]
[ECO "A45"]
[WhiteElo "1712"]
[BlackElo "1829"]
[Annotator "NA"]
[PlyCount "82"]
[EventDate "2019.12.27"]
[EventType "team-tourn"]
[EventRounds "7"]
[EventCountry "GER"]
[SourceTitle "playchess.com"]
[Source "ChessBase"]
[SourceQuality "1"]
[WhiteTeam "SK Lehrte 1919"]
[BlackTeam "Hamburger SK"]
[TimeControl "40/5400+30:1800+30"]

1. d4 {[%emt 0:00:00]} Nf6 {[%emt 0:00:00]} 2. Bf4 {[%emt 0:00:00]} c5 {[%emt 0:00:21]} 3. e3 {[%emt 0:00:51]} cxd4 {[%emt 0:01:43]} 4. exd4 {[%emt 0:00:13]} d5 {[%emt 0:07:11]} 5. c3 {[%emt 0:00:46]} Nc6 {[%emt 0:00:40]} 6. Nf3 {[%emt 0:03:32]} Bg4 {[%emt 0:03:22]} 7. Nbd2 {[%emt 0:02:33]} e6 {[%emt 0:01:22]} 8. Bd3 {[%emt 0:00:55]} Bd6 {[%emt 0:02:03]} 9. Bg3 {[%emt 0:01:13] unterminated} Bh5 {[%emt 0:08:07] unterminated} 10. Qc2 {[%emt 0:11:08] unterminated} Bg6 {[%emt 0:02:29] unterminated} 11. Ne5 {[%emt 0:02:00]} Bxd3 {[%emt 0:00:29]} 12. Qxd3 {[%emt 0:00:35] unterminated} O-O {[%emt 0:01:01] unterminated} 13. O-O {[%emt 0:01:05] unterminated} Nh5 {[%emt 0:14:17] unterminated} 14. Nxc6 {[%emt 0:08:35] unterminated} bxc6 {[%emt 0:00:23] unterminated} 15. Bxd6 $11 {[%emt 0:00:42]} Qxd6 {[%emt 0:00:00]} 16. Rfe1 {[%emt 0:03:36]} c5 {[%emt 0:05:57]} 17. dxc5 {[%emt 0:09:53]} Qxc5 {[%emt 0:00:15]} 18. b4 {[%emt 0:00:31]} Qc7 {[%emt 0:02:11]} 19. Re3 {[%emt 0:03:36]} h6 {[%emt 0:09:19]} 20. Nb3 {[%emt 0:07:49]} Rfc8 {[%emt 0:08:17]} 21. Nc5 {[%emt 0:04:57]} Nf4 22. Qd2 {[%emt 0:07:54]} Ng6 {[%emt 0:16:07]} 23. Rae1 {[%emt 0:05:51]} Re8 {[%emt 0:01:43]} 24. Rg3 {[%emt 0:07:48]} Qc6 {[%emt 0:04:19]} 25. a3 {[%emt 0:03:26]} Rad8 {[%emt 0:01:53]} 26. Rd3 {[%emt 0:02:16]} Qc8 {[%emt 0:02:26]} 27. Rd4 {[%emt 0:01:42]} Kh8 {[%emt 0:03:02]} 28. Qd3 {[%emt 0:02:39]} Rd6 {[%emt 0:02:05]} 29. Qf3 {[%emt 0:02:55]} Qc7 {[%emt 0:01:16]} 30. c4 {[%emt 0:02:24]} Red8 {[%emt 0:01:12]} 31. Qc3 {[%emt 0:02:41]} Ne7 {[%emt 0:01:10]} 32. h3 {[%emt 0:01:06]} Nf5 {[%emt 0:00:24]} 33. Rd2 {[%emt 0:00:29]} dxc4 {[%emt 0:00:29]} 34. Rxd6 {[%emt 0:00:10]} Nxd6 {[%emt 0:00:10]} 35. Rd1 {[%emt 0:00:55]} Nf5 {[%emt 0:00:34]} 36. Rxd8+ {[%emt 0:00:08]} Qxd8 {[%emt 0:00:01]} 37. Qxc4 {[%emt 0:00:21]} Qd1+ {[%emt 0:00:28]} 38. Qf1 {[%emt 0:00:06]} Qd5 {[%emt 0:00:43]} 39. Qd3 {[%emt 0:01:09]} Qe5 {[%emt 0:01:05]} 40. Kh1 {[%emt 0:00:50]} Qe1+ {[%emt 0:00:27]} 41. Kh2 {[%emt 0:30:18]} Qxf2 {[%emt 0:04:18] normal} 1/2-1/2

[Event "DVM U20 2019"]
[Site "Braunschweig"]
[Date "2019.12.30"]
[Round "7"]
[White "Fischer, Patrick"]
[Black "Simrock, Manuel"]
[Result "1-0"]
[ECO "C47"]
[WhiteElo "1604"]
[BlackElo "1211"]
[Annotator "NA"]
[PlyCount "53"]
[EventDate "2019.12.27"]
[EventType "team-tourn"]
[EventRounds "7"]
[EventCountry "GER"]
[SourceTitle "playchess.com"]
[Source "ChessBase"]
[SourceQuality "1"]
[WhiteTeam "SF HN-Biberach"]
[BlackTeam "Sges Bensheim"]
[TimeControl "40/5400+30:1800+30"]

1. e4 {[%emt 0:00:00]} e5 {[%emt 0:00:00]} 2. Nf3 {[%emt 0:00:00]} Nc6 {[%emt 0:00:00]} 3. Nc3 {[%emt 0:00:00]} Nf6 {[%emt 0:00:04]} 4. d4 {[%emt 0:00:00]} exd4 {[%emt 0:00:16]} 5. Nxd4 {[%emt 0:00:00]} Bb4 {[%emt 0:00:57]} 6. Nxc6 {[%emt 0:00:08]} bxc6 {[%emt 0:00:20]} 7. Bd3 {[%emt 0:00:20]} O-O {[%emt 0:02:32]} 8. O-O {[%emt 0:00:07]} h6 {[%emt 0:01:55]} 9. Qf3 {[%emt 0:00:48]} Re8 {[%emt 0:04:04]} 10. h3 {[%emt 0:05:05]} d5 {[%emt 0:07:45]} 11. exd5 {[%emt 0:04:35]} cxd5 {[%emt 0:01:00]} 12. Bf4 {[%emt 0:06:13]} Bb7 {[%emt 0:04:19]} 13. Nb5 {[%emt 0:08:41]} Ba5 {[%emt 0:00:14]} 14. c3 {[%emt 0:08:35]} a6 {[%emt 0:06:07]} 15. Nd4 {[%emt 0:03:24]} Ne4 {[%emt 0:02:41]} 16. Bxe4 {[%emt 0:10:22]} dxe4 {[%emt 0:04:29]} 17. Qg3 {[%emt 0:00:24]} Kh7 {[%emt 0:03:16]} 18. Be5 {[%emt 0:08:46]} f6 {[%emt 0:07:20]} 19. Bf4 {[%emt 0:02:52]} Bb6 {[%emt 0:00:54]} 20. Rad1 {[%emt 0:01:03]} Qd7 {[%emt 0:02:58]} 21. Rd2 {[%emt 0:01:33]} Qf7 {[%emt 0:04:06]} 22. Rfd1 {[%emt 0:02:21]} g5 {[%emt 0:01:09]} 23. Be3 {[%emt 0:02:09]} f5 {[%emt 0:00:19]} 24. Nxf5 {[%emt 0:00:40]} Qxf5 {[%emt 0:00:55]} 25. Bxb6 {[%emt 0:00:07]} cxb6 {[%emt 0:00:46]} 26. Rd7+ {[%emt 0:00:12]} Kh8 {[%emt 0:00:27]} 27. Rxb7 {[%emt 0:00:29] normal} 1-0

[Event "DVM U20 2019"]
[Site "Braunschweig"]
[Date "2019.12.30"]
[Round "7"]
[White "van Haaren, Laurens Jan"]
[Black "Sequeira, Titus"]
[Result "0-1"]
[ECO "A30"]
[WhiteElo "1482"]
[BlackElo "1472"]
[Annotator "NA"]
[PlyCount "77"]
[EventDate "2019.12.27"]
[EventType "team-tourn"]
[EventRounds "7"]
[EventCountry "GER"]
[SourceTitle "playchess.com"]
[Source "ChessBase"]
[SourceQuality "1"]
[WhiteTeam "SK Turm Kleve"]
[BlackTeam "SG Trier"]
[TimeControl "40/5400+30:1800+30"]

1. c4 {[%emt 0:00:00]} c5 {[%emt 0:00:00]} 2. g3 {[%emt 0:00:03]} Nc6 {[%emt 0:00:00]} 3. Bg2 {[%emt 0:00:09]} g6 {[%emt 0:00:06]} 4. e4 {[%emt 0:01:27]} Bg7 {[%emt 0:01:17]} 5. Ne2 {[%emt 0:00:39]} e5 {[%emt 0:00:33]} 6. O-O {[%emt 0:00:26]} Nge7 {[%emt 0:02:40]} 7. Nbc3 {[%emt 0:02:26]} a6 {[%emt 0:00:15]} 8. d3 {[%emt 0:00:27]} O-O {[%emt 0:00:35]} 9. h3 {[%emt 0:03:12]} d6 {[%emt 0:01:13]} 10. Kh2 {[%emt 0:00:12]} Bd7 {[%emt 0:06:00]} 11. f4 {[%emt 0:02:19]} Qc8 {[%emt 0:04:23]} 12. Qc2 {[%emt 0:08:30]} Nb4 13. Qd2 {[%emt 0:01:30]} f5 {[%emt 0:07:52]} 14. a3 {[%emt 0:04:21]} Nbc6 {[%emt 0:00:31]} 15. Qc2 {[%emt 0:00:40]} Nd8 {[%emt 0:05:59]} 16. Rb1 {[%emt 0:08:32]} b5 {[%emt 0:07:44]} 17. exf5 {[%emt 0:00:43]} bxc4 {[%emt 0:08:28]} 18. Bxa8 {[%emt 0:04:15]} Qxa8 {[%emt 0:00:56]} 19. fxg6 {[%emt 0:34:45]} Bf5 {[%emt 0:05:07]} 20. gxh7+ {[%emt 0:00:15]} Bxh7 {[%emt 0:00:37]} 21. Qd2 {[%emt 0:01:06]} cxd3 {[%emt 0:02:56]} 22. Ng1 {[%emt 0:01:48]} Ne6 {[%emt 0:05:32]} 23. Qg2 {[%emt 0:04:33]} e4 {[%emt 0:03:21]} 24. Bd2 {[%emt 0:03:25]} Nd4 {[%emt 0:05:00]} 25. Rbe1 {[%emt 0:03:16]} d5 {[%emt 0:01:30]} 26. Rd1 {[%emt 0:02:10]} Nc2 {[%emt 0:01:14]} 27. h4 {[%emt 0:01:30]} e3 {[%emt 0:01:20]} 28. Bc1 {[%emt 0:02:16]} Bxc3 {[%emt 0:04:52]} 29. bxc3 {[%emt 0:01:20]} Be4 {[%emt 0:01:27]} 30. Qh3 {[%emt 0:00:37]} e2 {[%emt 0:00:42]} 31. Qe6+ {[%emt 0:02:38]} Rf7 {[%emt 0:01:05]} 32. Nf3 {[%emt 0:02:10]} exd1=Q {[%emt 0:01:53]} 33. Rxd1 {[%emt 0:01:05]} Bxf3 {[%emt 0:01:22]} 34. Rxd3 {[%emt 0:00:09]} Be4 {[%emt 0:01:20]} 35. Rd1 {[%emt 0:01:10]} Qc6 {[%emt 0:02:05]} 36. Qg4+ {[%emt 0:00:33]} Qg6 {[%emt 0:00:24]} 37. Qe2 {[%emt 0:00:22]} Rg7 {[%emt 0:00:53]} 38. Rg1 {[%emt 0:00:06]} Nf5 {[%emt 0:01:04]} 39. Qf2 {[%emt 0:00:21] normal} 0-1

[Event "DVM U20 2019"]
[Site "Braunschweig"]
[Date "2019.12.30"]
[Round "7"]
[White "Meier, Julian"]
[Black "Hoffmann, Lennard"]
[Result "0-1"]
[ECO "A56"]
[WhiteElo "1323"]
[BlackElo "2059"]
[Annotator "NA"]
[PlyCount "58"]
[EventDate "2019.12.27"]
[EventType "team-tourn"]
[EventRounds "7"]
[EventCountry "GER"]
[SourceTitle "playchess.com"]
[Source "ChessBase"]
[SourceQuality "1"]
[WhiteTeam "USV TU Dresden"]
[BlackTeam "SG Aufbau Elbe Magdeburg"]
[TimeControl "40/5400+30:1800+30"]

1. d4 {[%emt 0:00:00]} Nf6 {[%emt 0:00:00]} 2. c4 {[%emt 0:00:00]} c5 {[%emt 0:00:00]} 3. e3 {[%emt 0:00:00]} e6 {[%emt 0:01:53]} 4. Nc3 {[%emt 0:00:00] unterminated} d5 {[%emt 0:02:24]} 5. dxc5 {[%emt 0:02:10]} Bxc5 {[%emt 0:00:16]} 6. cxd5 {[%emt 0:00:05]} exd5 {[%emt 0:00:43]} 7. Nf3 {[%emt 0:00:17]} O-O {[%emt 0:00:57]} 8. Be2 {[%emt 0:00:22]} Nc6 {[%emt 0:01:14] unterminated} 9. O-O {[%emt 0:00:38] unterminated unterminated. D32: Tarrasch Defence: Sidelines and lines without g3} Bf5 {[%emt 0:05:51]} (9... a6 10. b3 {½-½ (10) Martinez Reyes,P (2404)-Ibarra Jerez,J (2542) La Roda 2019}) 10. Bd3 {[%emt 0:01:23]} Bg4 {[%emt 0:01:49] unterminated} 11. Be2 {[%emt 0:05:07]} Re8 {[%emt 0:02:29]} 12. Nd4 {[%emt 0:04:52] unterminated} Be6 {[%emt 0:01:48]} 13. Bb5 $146 {[%emt 0:02:55] unterminated} ({Predecessor:} 13. Bf3 Qd7 14. a3 a6 15. b4 Ba7 16. Bb2 Rac8 17. Rc1 Ne5 {½-½ (47) Ipatov-Zazuliak,A Lvov 2001}) 13... Qc7 {[%emt 0:03:05] unterminated} 14. Nce2 {[%emt 0:05:11] unterminated} a6 {[%emt 0:02:07] unterminated} 15. Ba4 {[%emt 0:02:14] unterminated} b5 {[%emt 0:04:12] unterminated} 16. Bb3 {[%emt 0:03:02] unterminated} Bd6 {[%emt 0:05:07] unterminated} 17. Nxc6 {[%emt 0:07:33] unterminated} Qxc6 {[%emt 0:00:53] unterminated} 18. Bd2 {[%emt 0:01:47] unterminated} Bb8 {[%emt 0:07:30] unterminated} 19. Bc3 {[%emt 0:04:31] unterminated} Qd6 {[%emt 0:02:32]} 20. Ng3 {[%emt 0:01:24] unterminated} Ne4 {[%emt 0:07:46] unterminated} 21. Qd4 {[%emt 0:03:25] unterminated} f6 {[%emt 0:15:07] unterminated} 22. Bb4 {[%emt 0:03:06] unterminated} Qe5 {[%emt 0:05:37]} 23. Qxe5 $11 {[%emt 0:00:12]} (23. Qd3 $14 Ba7 24. Rad1) 23... Bxe5 {[%emt 0:00:46]} 24. Nxe4 {[%emt 0:00:42]} dxe4 {[%emt 0:00:12]} 25. Bxe6+ {[%emt 0:00:04]} Rxe6 {[%emt 0:00:09]} 26. Rab1 {[%emt 0:01:39]} a5 {[%emt 0:01:38]} 27. Bc3 {[%emt 0:00:48]} b4 {[%emt 0:01:15]} 28. Bxe5 {[%emt 0:00:20]} Rxe5 {[%emt 0:00:08]} 29. Rfd1 {[%emt 0:00:12]} Rc5 {[%emt 0:00:18] normal} 0-1

[Event "DVM U20 2019"]
[Site "Braunschweig"]
[Date "2019.12.30"]
[Round "7"]
[White "Meister, Konstantin"]
[Black "Gerold, Robin"]
[Result "0-1"]
[ECO "B27"]
[WhiteElo "1256"]
[BlackElo "1448"]
[Annotator "NA"]
[PlyCount "75"]
[EventDate "2019.12.27"]
[EventType "team-tourn"]
[EventRounds "7"]
[EventCountry "GER"]
[SourceTitle "playchess.com"]
[Source "ChessBase"]
[SourceQuality "1"]
[WhiteTeam "Sges Bensheim"]
[BlackTeam "SF HN-Biberach"]
[TimeControl "40/5400+30:1800+30"]

1. e4 {[%emt 0:00:00]} c5 {[%emt 0:00:00]} 2. Nf3 {[%emt 0:00:00]} b6 {[%emt 0:00:00]} 3. Bc4 {[%emt 0:01:26]} Bb7 {[%emt 0:00:01]} 4. Nc3 {[%emt 0:02:01]} e6 {[%emt 0:00:29]} 5. d3 {[%emt 0:01:01]} Be7 {[%emt 0:02:35]} 6. O-O {[%emt 0:03:01]} Nf6 {[%emt 0:01:16]} 7. Bf4 {[%emt 0:01:50]} d5 {[%emt 0:02:51]} 8. exd5 {[%emt 0:01:07]} Nxd5 {[%emt 0:00:12]} 9. Bxb8 {[%emt 0:04:31]} Rxb8 {[%emt 0:01:48]} 10. Nxd5 {[%emt 0:00:11]} Bxd5 {[%emt 0:00:09]} 11. Bb5+ {[%emt 0:00:16]} Kf8 {[%emt 0:01:24]} 12. Ne5 {[%emt 0:02:20]} Qc7 {[%emt 0:02:06]} 13. Nd7+ {[%emt 0:01:57]} Kg8 {[%emt 0:00:11]} 14. Nxb8 {[%emt 0:01:21]} Qxb8 {[%emt 0:00:05]} 15. Qg4 {[%emt 0:02:13]} h5 {[%emt 0:01:26]} 16. Qh3 {[%emt 0:01:15]} Rh6 {[%emt 0:08:15]} 17. c4 {[%emt 0:02:11]} Bb7 {[%emt 0:00:15]} 18. Rfe1 {[%emt 0:01:27]} Rg6 {[%emt 0:00:31]} 19. g3 {[%emt 0:00:57]} Qa8 {[%emt 0:01:23]} 20. Re5 {[%emt 0:04:36]} h4 {[%emt 0:01:07]} 21. Kf1 {[%emt 0:01:00]} Rh6 {[%emt 0:02:11]} 22. Ke2 {[%emt 0:13:12]} Bg2 {[%emt 0:02:02]} 23. Qg4 {[%emt 0:00:55]} f5 {[%emt 0:01:25]} 24. Qf4 {[%emt 0:02:12]} Bd6 {[%emt 0:00:46]} 25. Kd2 {[%emt 0:05:11]} hxg3 {[%emt 0:06:20]} 26. Qxg3 {[%emt 0:01:33]} Bxe5 {[%emt 0:01:31]} 27. Qxe5 {[%emt 0:00:38]} Qf3 {[%emt 0:02:09]} 28. Qe3 {[%emt 0:00:58]} Qxe3+ {[%emt 0:01:11]} 29. Kxe3 {[%emt 0:00:23]} Rxh2 {[%emt 0:00:53]} 30. Bd7 {[%emt 0:00:42]} Kf7 {[%emt 0:00:23]} 31. Kf4 {[%emt 0:00:45]} Bb7 {[%emt 0:00:39]} 32. Rf1 {[%emt 0:01:43]} Kf6 {[%emt 0:02:57]} 33. Kg3 {[%emt 0:02:44]} Rg2+ {[%emt 0:01:29]} 34. Kh3 {[%emt 0:01:14]} g5 {[%emt 0:01:11]} 35. f3 {[%emt 0:00:58]} Rxb2 {[%emt 0:04:08]} 36. a4 {[%emt 0:00:15]} Ke7 {[%emt 0:00:24]} 37. Bb5 {[%emt 0:04:12]} a6 {[%emt 0:00:22]} 38. Bxa6 {[%emt 0:00:24] normal} 0-1